bitfinex/quotes_SOLUSD_20250525
["timestamp","ask_amount","ask_price","bid_price","bid_amount"]
[1748182274682,89.67181043,172.02,172.01,155.44]
[1748182275182,79.67181043,172.02,172.01,155.44]
[1748182275792,89.67181043,172.02,172.01,155.44]
[1748182276177,79.67181043,172.02,172.01,155.44]
[1748182276571,18.79181043,171.97,171.87,3.3833]
[1748182276786,26.0,171.94,171.87,3.3833]
[1748182277593,26.0,171.94,171.88,120.64]
[1748182277890,26.0,171.94,171.89,34.84]
[1748182278085,26.0,171.94,171.88,120.64]
[1748182278391,26.0,171.94,171.9,34.84]
[1748182285584,18.79181043,172.0,171.9,34.84]
[1748182285792,0.14216157,171.96,171.9,34.84]
[1748182287680,26.0,171.98,171.9,34.84]
[1748182289194,0.14216157,171.97,171.88,83.58]
[1748182289387,0.14216157,171.97,171.91,71.9]
[1748182293797,0.14216157,171.97,171.92,83.58]
[1748182294098,0.14216157,171.95,171.92,83.58]
[1748182294284,0.14216157,171.95,171.93,34.84]
[1748182294710,26.14216157,171.95,171.92,83.58]
[1748182294886,26.0,171.94,171.93,37.02]
[1748182295201,0.14216157,171.93,171.82,3.3833]
[1748182295405,0.14216157,171.93,171.83,71.86]
[1748182295591,0.14216157,171.93,171.83,37.02]
[1748182295784,0.14216157,171.93,171.84,34.84]
[1748182297577,0.14216157,171.93,171.85,83.6]
[1748182298810,8.28375978,171.96,171.85,83.6]
[1748182298981,8.28375978,171.96,171.87,18.64964886]
[1748182299189,26.0,171.93,171.87,18.64964886]
[1748182299402,26.0,171.93,171.86,86.2833]
[1748182299597,26.0,171.93,171.87,71.86]
[1748182300100,26.0,171.93,171.87,37.02]
[1748182300299,26.0,171.93,171.88,34.84]
[1748182300602,26.0,171.97,171.88,34.84]
[1748182301534,26.0,171.97,171.86,86.2833]
[1748182301694,0.14216157,171.96,171.87,71.86]
[1748182302112,0.14216157,171.96,171.86,86.2833]
[1748182302414,0.14216157,171.96,171.87,71.86]
[1748182302713,26.0,171.96,171.87,71.86]
[1748182304715,26.0,171.95,171.87,71.86]
[1748182308810,26.0,171.96,171.87,71.86]
[1748182313019,26.0,171.94,171.88,83.6]
[1748182318318,26.0,171.94,171.89,71.86]
[1748182318518,0.14216157,171.93,171.89,37.02]
[1748182318722,0.14216157,171.93,171.88,83.6]
[1748182318920,26.14216157,171.93,171.9,71.86]
[1748182319236,34.42592135,171.93,171.9,71.86]
[1748182319420,34.42592135,171.93,171.9,37.02]
[1748182319608,34.42592135,171.93,171.91,34.84]
[1748182320242,53.07557021,171.93,171.92,34.84]
[1748182323738,53.07557021,171.93,171.9,37.02]
[1748182324622,26.0,171.89,171.88,83.6]
[1748182324940,26.0,171.89,171.88,155.46]
[1748182325238,26.14216157,171.89,171.88,155.46]
[1748182326940,26.14216157,171.89,171.88,120.62]
[1748182327143,26.14216157,171.89,171.88,155.46]
[1748182329156,26.0,171.89,171.88,155.46]
[1748182329516,26.0,171.9,171.88,155.46]
[1748182329824,6.72516157,171.95,171.88,155.46]
[1748182330029,26.0,171.92,171.88,155.46]
[1748182331569,26.0,171.93,171.88,155.46]
[1748182334139,26.0,171.93,171.88,83.6]
[1748182334312,26.0,171.93,171.89,71.82]
[1748182336319,26.0,171.92,171.89,71.82]
[1748182342055,8.28375978,171.95,171.89,71.82]
[1748182342750,26.0,171.92,171.89,71.82]
[1748182343554,26.0,171.96,171.89,71.82]
[1748182354665,26.0,171.96,171.9,83.6]
[1748182354878,26.0,171.95,171.9,83.6]
[1748182355057,26.0,171.95,171.91,34.84]
[1748182356065,0.14216157,171.94,171.9,83.6]
[1748182356381,26.0,171.93,171.91,71.78]
[1748182357163,26.0,171.93,171.91,36.94]
[1748182357362,26.14216157,171.93,171.92,34.84]
[1748182359074,26.0,171.93,171.92,34.84]
[1748182360469,26.0,171.93,171.92,118.44]
[1748182362575,26.0,171.95,171.92,118.44]
[1748182362956,26.14216157,171.94,171.92,118.44]
[1748182363941,26.0,171.94,171.92,118.44]
[1748182368665,26.0,171.96,171.92,118.44]
[1748182370059,26.0,171.96,171.93,36.94]
[1748182374870,26.0,171.96,171.94,83.6]
[1748182375071,26.0,171.96,171.95,34.84]
[1748182378777,26.0,171.93,171.87,82.9]
[1748182378982,26.0,171.93,171.88,155.38]
[1748182379202,0.14216157,171.92,171.89,34.84]
[1748182379484,26.14216157,171.91,171.9,34.84]
[1748182379975,26.14216157,171.91,171.88,120.54]
[1748182380180,26.14216157,171.91,171.89,34.84]
[1748182381197,26.0,171.91,171.89,34.84]
[1748182381483,26.0,171.9,171.89,34.84]
[1748182382494,26.0,171.9,171.89,71.78]
[1748182384375,26.0,171.91,171.89,71.78]
[1748182389279,26.0,171.92,171.89,71.78]
[1748182394692,26.0,171.93,171.89,71.78]
[1748182398697,26.0,171.93,171.9,83.6]
[1748182409294,26.0,171.93,171.91,34.84]
[1748182413004,26.0,171.93,171.92,36.9]
[1748182414301,26.0,171.93,171.9,83.6]
[1748182414521,26.0,171.93,171.91,71.74]
[1748182415299,26.0,171.92,171.91,71.74]
[1748182415999,26.0,171.92,171.91,36.9]
[1748182416291,26.0,171.92,171.91,71.74]
[1748182423618,26.0,171.92,171.91,155.34]
[1748182442241,26.0,171.92,171.91,120.5]
[1748182442415,34.42592135,171.92,171.91,155.34]
[1748182443142,34.42592135,171.92,171.91,120.5]
[1748182443337,34.28375978,171.92,171.91,155.34]
[1748182444738,26.0,171.92,171.91,155.34]
[1748182451939,26.14216157,171.92,171.91,155.34]
[1748182453247,26.66011043,171.92,171.91,155.26]
[1748182454528,26.0,171.88,171.77,18.64964886]
[1748182454853,26.0,171.88,171.78,36.82]
[1748182455751,26.0,171.87,171.79,34.84]
[1748182456529,26.0,171.87,171.8,34.84]
[1748182456737,0.14216157,171.86,171.81,34.84]
[1748182457245,26.14216157,171.86,171.81,34.84]
[1748182457749,26.14216157,171.86,171.82,83.62]
[1748182457920,26.14216157,171.86,171.83,34.84]
[1748182457921,26.0,171.85,171.83,34.84]
[1748182458126,26.0,171.85,171.84,36.82]
[1748182460048,26.0,171.85,171.84,71.66]
[1748182461149,26.0,171.85,171.82,83.62]
[1748182461455,26.14216157,171.85,171.84,71.66]
[1748182463559,26.14216157,171.85,171.84,36.82]
[1748182463857,26.14216157,171.85,171.84,71.66]
[1748182468160,26.0,171.85,171.84,71.66]
[1748182468461,26.52744886,171.87,171.84,71.66]
[1748182468462,26.0,171.86,171.84,71.66]
[1748182469831,26.14216157,171.86,171.85,34.86]
[1748182476883,26.14216157,171.86,171.85,118.5]
[1748182478585,44.79181043,171.86,171.85,118.5]
[1748182480672,8.34760313,171.89,171.85,118.5]
[1748182481260,26.0,171.89,171.85,118.5]
[1748182484279,26.0,171.86,171.85,83.64]
[1748182484468,26.0,171.86,171.85,155.3]
[1748182485293,0.14216157,171.89,171.85,155.3]
[1748182486587,26.14216157,171.89,171.85,155.3]
[1748182487683,26.14216157,171.89,171.85,120.44]
[1748182487888,26.14216157,171.89,171.86,34.86]
[1748182488573,26.0,171.88,171.86,34.86]
[1748182491890,26.0,171.88,171.85,120.44]
[1748182492086,26.0,171.86,171.75,3.3833]
[1748182492387,26.0,171.83,171.76,36.78]
[1748182492992,0.14216157,171.84,171.76,36.78]
[1748182493295,0.14216157,171.84,171.77,34.86]
[1748182493894,26.0,171.83,171.77,34.86]
[1748182494388,26.0,171.83,171.78,34.86]
[1748182494389,0.14216157,171.82,171.78,34.86]
[1748182497567,0.14216157,171.82,171.79,83.64]
[1748182501296,0.14216157,171.82,171.8,36.8]
[1748182501482,26.0,171.83,171.8,36.8]
[1748182502779,26.0,171.83,171.81,34.86]
[1748182503676,0.14216157,171.82,171.81,34.86]
[1748182504878,18.79181043,171.82,171.8,36.8]
[1748182505201,18.79181043,171.82,171.81,34.86]
[1748182505387,26.0,171.82,171.81,34.86]
[1748182505595,26.0,171.83,171.81,34.86]
[1748182509203,8.34760313,171.86,171.81,34.86]
[1748182509700,26.0,171.85,171.81,34.86]
[1748182510005,26.0,171.86,171.81,34.86]
[1748182521784,26.0,171.86,171.82,83.64]
[1748182531398,26.0,171.86,171.83,36.76]
[1748182535414,26.0,171.86,171.84,71.6]
[1748182536219,26.0,171.86,171.82,83.64]
[1748182536521,26.0,171.86,171.83,71.6]
[1748182537123,26.0,171.86,171.82,83.64]
[1748182537324,26.0,171.86,171.83,71.6]
[1748182537522,26.0,171.86,171.83,36.76]
[1748182537726,26.0,171.86,171.84,34.84]
[1748182540011,26.0,171.86,171.83,36.76]
[1748182540213,26.0,171.86,171.85,34.84]
[1748182540726,8.34760313,171.9,171.85,34.84]
[1748182541025,1.5716,171.92,171.85,34.84]
[1748182541026,26.0,171.88,171.85,34.84]
[1748182543041,26.0,171.9,171.85,34.84]
[1748182543213,26.0,171.9,171.86,83.62]
[1748182544017,30.33823899,171.89,171.86,83.62]
[1748182544224,34.67647798,171.89,171.86,83.62]
[1748182544927,2.16928364,171.88,171.86,83.62]
[1748182545132,30.33823899,171.87,171.86,83.62]
[1748182545629,32.50752263,171.87,171.86,83.62]
[1748182545810,36.84576162,171.87,171.86,83.62]
[1748182553138,32.50752263,171.87,171.86,83.62]
[1748182554705,36.67024179,171.87,171.86,83.62]
[1748182556444,36.67024179,171.87,171.86,118.46]
[1748182556769,32.50752263,171.87,171.86,118.46]
[1748182562444,32.50752263,171.87,171.86,155.18]
[1748182583062,32.50752263,171.87,171.86,120.34]
[1748182583279,40.2279842,171.87,171.86,83.62]
[1748182583437,40.2279842,171.87,171.86,155.16]
[1748182583641,58.87763306,171.87,171.86,155.16]
[1748182584143,0.14216157,171.86,171.72,18.64964886]
[1748182584350,26.0,171.83,171.73,36.7]
[1748182584751,4.16398831,171.81,171.73,36.7]
[1748182585247,2.16928364,171.8,171.74,34.84]
[1748182585768,4.33823899,171.79,171.71,82.9]
[1748182585942,4.33823899,171.79,171.75,36.7]
[1748182586131,4.33823899,171.79,171.76,34.84]
[1748182586336,2.16928364,171.78,171.76,34.84]
[1748182586668,4.33823899,171.77,171.69,18.64964886]
[1748182586834,4.33823899,171.77,171.7,71.54]
[1748182587042,2.16928364,171.76,171.7,71.54]
[1748182587236,2.16928364,171.76,171.7,36.7]
[1748182587458,2.16928364,171.76,171.71,34.84]
[1748182587643,2.16928364,171.76,171.72,34.84]
[1748182587841,2.16928364,171.75,171.71,83.62]
[1748182588042,4.32208284,171.74,171.72,34.84]
[1748182588858,6.49136648,171.73,171.72,34.84]
[1748182589944,6.49136648,171.73,171.71,83.62]
[1748182590153,6.49136648,171.73,171.72,34.86]
[1748182590558,2.16928364,171.73,171.72,34.86]
[1748182594342,28.16928364,171.73,171.72,34.86]
[1748182594860,2.16928364,171.73,171.72,34.86]
[1748182595565,2.16928364,171.74,171.72,34.86]
[1748182595778,26.0,171.73,171.71,83.62]
[1748182595963,26.0,171.73,171.72,71.58]
[1748182596372,28.16928364,171.73,171.72,71.58]
[1748182597069,28.16928364,171.73,171.72,36.72]
[1748182597257,28.16928364,171.73,171.72,71.58]
[1748182598272,28.16928364,171.73,171.72,36.72]
[1748182598472,32.46812259,171.73,171.72,71.58]
[1748182600068,32.61028416,171.73,171.72,71.58]
[1748182603674,51.25993302,171.73,171.72,71.58]
[1748182604652,51.25993302,171.73,171.72,71.6]
[1748182604853,46.96109407,171.73,171.72,71.6]
[1748182605553,44.79181043,171.73,171.72,71.6]
[1748182606382,46.93607878,171.73,171.72,71.6]
[1748182608270,46.93607878,171.73,171.72,36.72]
[1748182608476,46.93607878,171.73,171.72,71.6]
[1748182610481,51.22374433,171.73,171.72,71.6]
[1748182615075,6.4319339,171.73,171.72,71.6]
[1748182615265,2.14426835,171.73,171.72,71.6]
[1748182615581,4.16398831,171.74,171.72,71.6]
[1748182616884,28.14686751,171.78,171.72,71.6]
[1748182617083,26.0,171.78,171.72,71.6]
[1748182619167,26.0,171.78,171.71,83.62]
[1748182619373,26.0,171.78,171.72,71.58]
[1748182619574,26.0,171.77,171.72,71.58]
[1748182619772,2.14992215,171.76,171.72,71.58]
[1748182621072,2.14992215,171.76,171.73,34.88]
[1748182621472,20.88087962,171.77,171.73,34.88]
[1748182622875,20.88087962,171.77,171.72,36.7]
[1748182622876,0.14216157,171.76,171.74,34.88]
[1748182623186,4.44778399,171.76,171.74,34.88]
[1748182623375,8.6117723,171.76,171.74,34.88]
[1748182624789,4.30614988,171.75,171.74,34.88]
[1748182625366,4.16398831,171.75,171.74,34.88]
[1748182626695,30.16398831,171.75,171.74,34.88]
[1748182626888,26.0,171.75,171.74,34.88]
[1748182627198,26.0,171.75,171.74,71.58]
[1748182627394,4.30562242,171.75,171.74,71.58]
[1748182628409,4.30562242,171.76,171.74,71.58]
[1748182629097,4.30562242,171.75,171.74,71.58]
[1748182629301,8.46961073,171.75,171.74,71.58]
[1748182631401,4.30562242,171.75,171.74,71.58]
[1748182632290,4.30562242,171.75,171.74,71.56]
[1748182632597,30.30562242,171.75,171.74,71.56]
[1748182635300,26.0,171.74,171.71,83.62]
[1748182635498,26.0,171.74,171.72,71.56]
[1748182635901,26.0,171.74,171.72,36.68]
[1748182636197,26.14216157,171.74,171.73,34.88]
[1748182636988,30.46724519,171.74,171.73,34.88]
[1748182643202,4.46724519,171.74,171.73,34.88]
[1748182643587,4.32508362,171.74,171.73,34.88]
[1748182649403,4.46724519,171.74,171.73,34.88]
[1748182649703,30.46724519,171.74,171.73,34.88]
[1748182649910,4.46724519,171.74,171.73,34.88]
[1748182650096,26.0,171.73,171.72,36.68]
[1748182650592,26.0,171.73,171.72,71.56]
[1748182651016,30.32508362,171.73,171.72,71.56]
[1748182657122,30.32508362,171.73,171.72,155.26]
[1748182658610,30.32508362,171.73,171.61,86.2833]
[1748182658611,26.14216157,171.72,171.61,86.2833]
[1748182658813,26.14216157,171.72,171.62,71.56]
[1748182659007,4.32508362,171.71,171.62,71.56]
[1748182659821,4.32508362,171.7,171.62,36.68]
[1748182660027,4.32508362,171.7,171.63,34.88]
[1748182660826,4.32508362,171.69,171.63,34.88]
[1748182661318,26.0,171.66,171.63,34.88]
[1748182661523,26.0,171.66,171.64,71.54]
[1748182661705,30.32508362,171.65,171.64,71.54]
[1748182662231,30.32508362,171.65,171.64,36.66]
[1748182662411,30.32508362,171.65,171.64,71.54]
[1748182664226,30.32508362,171.65,171.64,36.66]
[1748182664429,30.32508362,171.65,171.64,71.54]
[1748182664633,29.78509343,171.65,171.64,71.54]
[1748182667733,29.78509343,171.65,171.64,155.26]
[1748182671939,29.78509343,171.65,171.64,155.28]
[1748182674254,29.78509343,171.65,171.64,155.3]
[1748182674542,33.92384431,171.65,171.64,155.3]
[1748182680248,33.92384431,171.65,171.64,120.4]
[1748182680423,33.92384431,171.65,171.64,155.3]
[1748182680744,3.78509343,171.65,171.64,155.3]
[1748182680929,29.78509343,171.66,171.64,155.3]
[1748182682066,3.78509343,171.65,171.64,155.3]
[1748182682959,29.78509343,171.65,171.64,155.3]
[1748182685274,3.78509343,171.65,171.64,155.3]
[1748182686262,7.92914638,171.65,171.64,155.3]
[1748182686574,4.14405295,171.65,171.64,155.3]
[1748182687067,4.14405295,171.65,171.64,120.4]
[1748182687254,4.14405295,171.65,171.64,155.3]
[1748182687450,7.92914638,171.65,171.64,155.3]
[1748182689377,3.78509343,171.65,171.64,155.3]
[1748182690772,3.78509343,171.65,171.64,120.4]
[1748182690956,3.78509343,171.65,171.64,155.3]
[1748182691159,3.927255,171.65,171.64,155.3]
[1748182691564,22.57690386,171.65,171.64,155.3]
[1748182692175,24.17700386,171.65,171.64,155.3]
[1748182693081,24.17700386,171.65,171.64,120.4]
[1748182693265,24.17700386,171.65,171.64,155.3]
[1748182696080,24.17700386,171.65,171.64,120.4]
[1748182696282,24.17700386,171.65,171.64,155.3]
[1748182697086,32.52460699,171.65,171.64,155.3]
[1748182697265,13.87495813,171.65,171.64,155.3]
[1748182698087,12.13269656,171.65,171.64,155.3]
[1748182698978,29.78509343,171.65,171.64,155.3]
[1748182699467,3.78509343,171.65,171.64,155.3]
[1748182699665,29.78509343,171.65,171.64,155.3]
[1748182699867,3.78509343,171.65,171.64,155.3]
[1748182700090,29.78509343,171.65,171.64,155.3]
[1748182700270,3.78509343,171.65,171.64,155.3]
[1748182700671,29.78509343,171.65,171.64,155.3]
[1748182702389,29.927255,171.65,171.64,120.4]
[1748182702594,29.927255,171.65,171.64,155.3]
[1748182702982,48.57690386,171.65,171.64,155.3]
[1748182703680,56.92450699,171.65,171.64,155.3]
[1748182706300,48.57690386,171.65,171.64,155.3]
[1748182717087,48.57690386,171.65,171.64,83.72]
[1748182717286,48.57690386,171.65,171.64,121.74]
[1748182717588,91.54710386,171.65,171.64,156.64]
[1748182717797,91.54710386,171.65,171.48,86.2833]
[1748182717798,26.0,171.57,171.48,86.2833]
[1748182717997,26.0,171.57,171.49,38.02]
[1748182718302,3.78509343,171.56,171.49,38.02]
[1748182718911,3.78509343,171.56,171.5,34.9]
[1748182719095,3.78509343,171.55,171.5,34.9]
[1748182719785,7.94655751,171.55,171.49,38.02]
[1748182720080,7.94655751,171.55,171.5,34.9]
[1748182720286,3.78509343,171.54,171.5,34.9]
[1748182721087,4.16146408,171.55,171.5,34.9]
[1748182722414,4.33046756,171.54,171.5,34.9]
[1748182723301,4.16146408,171.55,171.5,34.9]
[1748182724613,4.16146408,171.54,171.5,34.9]
[1748182726606,8.4887866,171.55,171.5,34.9]
[1748182727222,4.32732252,171.54,171.5,34.9]
[1748182727722,4.32732252,171.54,171.51,83.76]
[1748182728724,4.32732252,171.54,171.52,34.9]
[1748182729333,4.32732252,171.54,171.51,83.76]
[1748182729500,4.32732252,171.54,171.53,34.9]
[1748182729900,4.32732252,171.54,171.51,83.76]
[1748182730126,4.32732252,171.54,171.52,34.9]
[1748182730622,4.16146408,171.53,171.52,34.9]
[1748182731107,8.4887866,171.53,171.52,34.9]
[1748182732022,4.16146408,171.53,171.52,34.9]
[1748182732618,4.16146408,171.54,171.52,34.9]
[1748182733612,8.4887866,171.54,171.52,34.9]
[1748182734327,4.16146408,171.54,171.52,34.9]
[1748182735419,34.4887866,171.58,171.52,34.9]
[1748182736325,4.32732252,171.57,171.52,34.9]
[1748182737835,8.4887866,171.57,171.52,34.9]
[1748182738336,4.32732252,171.56,171.52,34.9]
[1748182738511,4.32732252,171.56,171.53,37.64]
[1748182739228,4.32732252,171.56,171.51,166.66]
[1748182739432,4.32732252,171.56,171.54,72.54]
[1748182739613,8.4887866,171.57,171.54,72.54]
[1748182740413,4.32732252,171.56,171.54,72.54]
[1748182741537,8.4887866,171.57,171.54,72.54]
[1748182743240,26.0,171.55,171.54,37.64]
[1748182743429,26.0,171.55,171.54,72.54]
[1748182744031,4.16146408,171.57,171.54,156.3]
[1748182744947,8.49102912,171.56,171.54,156.3]
[1748182745645,4.16146408,171.56,171.54,156.3]
[1748182746440,26.0,171.55,171.54,156.3]
[1748182747451,4.33047965,171.55,171.54,156.3]
[1748182749753,26.0,171.55,171.54,156.3]
[1748182750445,4.16146408,171.56,171.54,156.3]
[1748182752145,30.16146408,171.58,171.54,156.3]
[1748182752352,4.16146408,171.58,171.54,156.3]
[1748182754355,8.49655818,171.59,171.54,156.3]
[1748182754540,4.16146408,171.59,171.54,156.3]
[1748182755253,30.3352523,171.58,171.54,156.3]
[1748182757555,26.0,171.58,171.54,156.3]
[1748182759357,4.16146408,171.58,171.54,156.3]
[1748182764363,26.0,171.58,171.54,156.3]
[1748182764943,4.16146408,171.59,171.54,156.3]
[1748182766360,4.16146408,171.6,171.54,156.3]
[1748182767374,4.3357812,171.59,171.54,156.3]
[1748182768671,4.16146408,171.6,171.54,156.3]
[1748182769279,4.16146408,171.6,171.55,18.64964886]
[1748182769446,4.16146408,171.6,171.55,101.54964886]
[1748182770162,26.0,171.57,171.55,101.54964886]
[1748182770478,26.0,171.57,171.56,34.9]
[1748182770781,4.16146408,171.6,171.56,34.9]
[1748182771251,4.16146408,171.6,171.57,34.9]
[1748182771675,4.16146408,171.58,171.57,34.9]
[1748182771884,4.16146408,171.58,171.54,121.4]
[1748182772059,26.0,171.56,171.55,34.9]
[1748182772465,30.33522644,171.56,171.55,34.9]
[1748182772880,30.33522644,171.56,171.54,121.4]
[1748182773082,30.33522644,171.56,171.55,34.9]
[1748182774279,34.49669052,171.56,171.54,121.4]
[1748182774490,8.49669052,171.56,171.55,34.9]
[1748182776580,30.33522644,171.56,171.55,34.9]
[1748182777270,4.33522644,171.56,171.55,34.9]
[1748182778500,8.32292817,171.58,171.55,34.9]
[1748182779194,4.16408547,171.59,171.55,34.9]
[1748182780586,4.33674042,171.58,171.55,34.9]
[1748182781086,4.16408547,171.59,171.55,34.9]
[1748182782105,4.33672297,171.58,171.55,34.9]
[1748182782904,30.16408547,171.59,171.55,34.9]
[1748182783992,30.16408547,171.59,171.56,71.88]
[1748182784199,30.16408547,171.59,171.56,36.98]
[1748182784506,30.16408547,171.59,171.57,34.9]
[1748182785103,4.33674289,171.58,171.57,34.9]
[1748182785309,26.0,171.56,171.54,83.76]
[1748182785614,26.0,171.55,171.54,83.76]
[1748182785904,26.0,171.55,171.54,155.64]
[1748182786205,30.33674289,171.55,171.54,155.64]
[1748182789724,30.33674289,171.55,171.54,120.74]
[1748182789927,30.33674289,171.55,171.54,155.64]
[1748182790403,30.33674289,171.55,171.54,120.74]
[1748182790594,30.33674289,171.55,171.54,155.64]
[1748182792532,30.33674289,171.55,171.54,120.74]
[1748182792823,30.33674289,171.55,171.54,155.64]
[1748182795822,4.33674289,171.55,171.54,155.64]
[1748182801731,8.49242714,171.55,171.54,155.64]
[1748182804245,8.49242714,171.55,171.54,83.76]
[1748182804545,8.49242714,171.55,171.54,155.66]
[1748182805229,8.49242714,171.55,171.54,83.76]
[1748182805419,8.49242714,171.55,171.54,155.66]
[1748182811047,8.49242714,171.55,171.54,120.76]
[1748182811255,8.49242714,171.55,171.54,155.68]
[1748182812646,4.33674289,171.55,171.54,155.68]
[1748182818351,4.47890446,171.55,171.54,120.76]
[1748182818550,4.47890446,171.55,171.54,155.68]
[1748182819135,4.33674289,171.55,171.54,155.68]
[1748182819457,26.0,171.55,171.54,155.68]
[1748182821964,4.15125629,171.57,171.54,155.68]
[1748182823776,4.15125629,171.57,171.54,83.76]
[1748182823946,4.15125629,171.57,171.55,71.76]
[1748182824266,4.31991808,171.56,171.55,71.76]
[1748182829269,26.0,171.55,171.54,83.76]
[1748182829475,4.15125629,171.57,171.54,155.52]
[1748182830286,4.15125629,171.57,171.54,83.76]
[1748182830483,4.15125629,171.57,171.55,71.74]
[1748182830870,4.32401513,171.56,171.55,71.74]
[1748182838991,34.46710892,171.56,171.55,71.74]
[1748182841294,30.32401513,171.56,171.55,71.74]
[1748182845097,4.32401513,171.56,171.55,71.74]
[1748182847094,4.32401513,171.56,171.54,83.76]
[1748182847282,4.32401513,171.56,171.55,71.74]
[1748182848696,4.32401513,171.56,171.55,36.84]
[1748182848993,4.32401513,171.56,171.55,71.74]
[1748182855303,4.4661767,171.56,171.55,36.84]
[1748182855508,4.4661767,171.56,171.55,71.74]
[1748182856500,4.4661767,171.56,171.55,36.84]
[1748182856688,4.4661767,171.56,171.55,71.74]
[1748182860608,0.14216157,171.55,171.54,83.76]
[1748182860905,0.14216157,171.55,171.54,155.52]
[1748182861490,4.4661767,171.55,171.54,155.52]
[1748182862419,26.0,171.52,171.43,3.3833]
[1748182862579,1.66616157,171.51,171.44,155.54]
[1748182863098,26.0,171.47,171.44,155.54]
[1748182863399,26.0,171.47,171.45,34.92]
[1748182863796,4.32401513,171.46,171.45,34.92]
[1748182864115,6.47974468,171.46,171.45,34.92]
[1748182864912,2.15572955,171.46,171.45,34.92]
[1748182867693,6.45973876,171.46,171.45,34.92]
[1748182872111,2.15572955,171.46,171.45,34.92]
[1748182874016,4.14438739,171.49,171.44,166.68]
[1748182874187,4.14438739,171.49,171.45,71.78]
[1748182874387,4.14438739,171.49,171.46,71.78]
[1748182874597,4.14438739,171.52,171.46,71.78]
[1748182874801,2.14992567,171.51,171.46,71.78]
[1748182875118,2.14992567,171.5,171.46,71.78]
[1748182875909,2.14992567,171.49,171.46,71.78]
[1748182877025,2.14992567,171.48,171.47,71.76]
[1748182879301,6.44686658,171.48,171.47,71.76]
[1748182880413,6.58902815,171.48,171.44,83.78]
[1748182880613,26.0,171.45,171.44,83.78]
[1748182880919,30.29647447,171.45,171.44,155.54]
[1748182881331,32.44640014,171.45,171.44,155.54]
[1748182881808,28.14992567,171.45,171.44,155.54]
[1748182882207,28.14992567,171.45,171.44,83.78]
[1748182882723,2.14992567,171.45,171.44,155.54]
[1748182883098,6.58839149,171.45,171.44,120.62]
[1748182883298,26.83564035,171.45,171.44,155.54]
[1748182883505,30.98002774,171.45,171.44,155.54]
[1748182884620,26.0,171.41,171.29,3.3833]
[1748182884919,26.0,171.39,171.3,71.76]
[1748182885118,26.0,171.39,171.31,34.92]
[1748182885419,26.0,171.41,171.31,34.92]
[1748182885820,26.0,171.42,171.32,18.64964886]
[1748182886021,26.0,171.42,171.33,34.92]
[1748182886200,6.28909243,171.41,171.33,34.92]
[1748182886401,26.0,171.4,171.34,34.92]
[1748182887109,2.14470504,171.39,171.34,34.92]
[1748182887727,4.14438739,171.41,171.35,83.82]
[1748182887904,4.14438739,171.41,171.36,36.84]
[1748182888107,26.14216157,171.41,171.36,36.84]